fUST/lending_fUST_20241229
["ID","MTS","AMOUNT","RATE_DAILY","PERIOD"]
[347042624,1735482180026,-500.0,9.515e-05,2]
[347042625,1735482180049,-500.0,9.515e-05,2]
[347042626,1735482180071,-500.0,9.515e-05,2]
[347042627,1735482180173,-500.0,9.515e-05,2]
[347042628,1735482180198,-500.0,9.515e-05,2]
[347042629,1735482180221,-500.0,9.515e-05,2]
[347042630,1735482180244,-500.0,9.515e-05,2]
[347042631,1735482180268,-500.0,9.515e-05,2]
[347042632,1735482180291,-500.0,9.515e-05,2]
[347042633,1735482180314,-504.4650144,9.515e-05,2]
[347042634,1735482180336,-501.32887345,9.515e-05,2]
[347042635,1735482180362,-503.37256293,9.515e-05,2]
[347042636,1735482180385,-496.70362208,9.515e-05,2]
[347042637,1735482180409,-500.0,9.515e-05,2]
[347042638,1735482180432,-427.74579179,9.515e-05,2]
[347042639,1735482180456,-500.0,9.515e-05,2]
[347042640,1735482180479,-500.0,9.515e-05,2]
[347042641,1735482180501,-500.0,9.515e-05,2]
[347042642,1735482180523,-500.0,9.515e-05,2]
[347042643,1735482180545,-500.0,9.515e-05,2]
[347042644,1735482180566,-500.0,9.515e-05,2]
[347042645,1735482180591,-500.0,9.515e-05,2]
[347042646,1735482180612,-500.0,9.515e-05,2]
[347042647,1735482180635,-500.0,9.515e-05,2]
[347042648,1735482180657,-500.0,9.515e-05,2]
[347042649,1735482180679,-500.0,9.515e-05,2]
[347042650,1735482180701,-1486.74,9.515e-05,2]
[347042651,1735482180724,-500.0,9.516e-05,2]
[347042652,1735482180745,-500.0,9.516e-05,2]
[347042653,1735482180770,-504.10523663,9.516e-05,2]
[347042654,1735482180792,-501.81324936,9.516e-05,2]
[347042655,1735482180813,-504.38767277,9.516e-05,2]
[347042656,1735482180836,-500.0,9.516e-05,2]
[347042657,1735482180859,-500.0,9.516e-05,2]
[347042658,1735482180880,-500.0,9.516e-05,2]
[347042659,1735482180901,-500.0,9.516e-05,2]
[347042660,1735482180922,-500.0,9.516e-05,2]
[347042661,1735482180944,-500.0,9.516e-05,2]
[347042662,1735482180966,-502.76721073,9.516e-05,2]
[347042663,1735482180989,-500.0,9.516e-05,2]
[347042664,1735482181011,-506.71840077,9.516e-05,2]
[347042665,1735482181034,-500.0,9.517e-05,2]
[347042666,1735482181059,-3439.47,9.517e-05,2]
[347042667,1735482181082,-1070.85244235,9.652e-05,2]
[347042668,1735482181104,-368.07743756,9.779e-05,2]
[347042669,1735482181127,-500.0,9.779e-05,2]
[347042670,1735482181150,-457.37461,9.779e-05,2]
[347042674,1735482370118,161.74919859,8.962e-05,2]
[347042675,1735482378587,161.74919859,8.962e-05,2]
[347042676,1735482394923,161.74919859,8.962e-05,2]
[347042678,1735482410744,161.74919859,8.962e-05,2]
[347042680,1735482428039,161.74919859,8.962e-05,2]
[347042681,1735482445940,150.26783684,8.962e-05,2]
[347042683,1735482515106,161.74919859,8.962e-05,2]
[347042684,1735482518607,9318.22773675,0.00025,120]
[347042689,1735482602673,247.9496751,8.953e-05,2]
[347042726,1735482632985,391.66422128,8.953e-05,2]
[347042730,1735482633929,-161.74919859,9.053e-05,2]
[347042731,1735482633939,-300.0,9.229e-05,2]
[347042732,1735482633949,-201.55788218,9.23e-05,2]
[347042733,1735482633960,-500.0,9.23e-05,2]
[347042734,1735482633969,-500.0,9.23e-05,2]
[347042735,1735482633986,-500.0,9.23e-05,2]
[347042736,1735482633995,-506.76156882,9.23e-05,2]
[347042737,1735482634004,-500.0,9.23e-05,2]
[347042738,1735482634014,-160.29374376,9.23e-05,2]
[347042739,1735482634023,-500.0,9.23e-05,2]
[347042740,1735482634032,-500.0,9.23e-05,2]
[347042741,1735482634041,-311.03584474,9.23e-05,2]
[347042742,1735482634050,-500.0,9.23e-05,2]
[347042743,1735482634059,-500.0,9.23e-05,2]
[347042744,1735482634068,-447.05436443,9.23e-05,2]
[347042745,1735482634077,-500.0,9.23e-05,2]
[347042746,1735482634086,-445.03217499,9.23e-05,2]
[347042747,1735482634098,-54.96782501,9.23e-05,2]
[347042748,1735482634107,-500.0,9.23e-05,2]
[347042749,1735482634117,-500.0,9.23e-05,2]
[347042750,1735482634126,-500.0,9.23e-05,2]
[347042751,1735482634136,-364.57247598,9.23e-05,2]
[347042752,1735482634148,-135.42752402,9.23e-05,2]
[347042753,1735482634157,-500.0,9.23e-05,2]
[347042754,1735482634166,-151.71603176,9.23e-05,2]
[347042755,1735482634177,-348.28396824,9.23e-05,2]
[347042756,1735482634186,-500.0,9.23e-05,2]
[347042757,1735482634195,-500.0,9.23e-05,2]
[347042758,1735482634204,-459.62097166,9.23e-05,2]
[347042759,1735482634243,-40.37902834,9.23e-05,2]
[347042760,1735482634252,-500.0,9.23e-05,2]
[347042761,1735482634262,-500.0,9.23e-05,2]
[347042762,1735482634271,-608.0933036,9.23e-05,2]
[347042763,1735482634281,-181.0,9.23e-05,2]
[347042764,1735482634290,-500.0,9.23e-05,2]
[347042765,1735482634299,-500.0,9.23e-05,2]
[347042766,1735482634309,-500.0,9.23e-05,2]
[347042767,1735482634319,-500.0,9.23e-05,2]
[347042768,1735482634328,-401.92729483,9.23e-05,2]
[347042769,1735482634337,-500.0,9.23e-05,2]
[347042770,1735482634346,-25.90037323,9.23e-05,2]
[347042771,1735482634358,-474.09962677,9.23e-05,2]
[347042772,1735482634367,-500.0,9.23e-05,2]
[347042773,1735482634377,-500.0,9.23e-05,2]
[347042774,1735482634386,-424.49161416,9.23e-05,2]
[347042775,1735482634398,-500.0,9.23e-05,2]
[347042776,1735482634407,-500.0,9.231e-05,2]
[347042777,1735482634416,-500.0,9.231e-05,2]
[347042778,1735482634425,-500.0,9.231e-05,2]
[347042779,1735482634434,-500.0,9.231e-05,2]
[347042780,1735482634443,-500.0,9.231e-05,2]
[347042781,1735482634452,-500.0,9.231e-05,2]
[347042782,1735482634461,-500.0,9.231e-05,2]
[347042783,1735482634470,-500.0,9.231e-05,2]
[347042784,1735482634481,-500.0,9.231e-05,2]
[347042785,1735482634490,-500.0,9.231e-05,2]
[347042786,1735482634501,-500.0,9.231e-05,2]
[347042787,1735482634510,-500.0,9.231e-05,2]
[347042789,1735482634520,-500.0,9.231e-05,2]
[347042791,1735482634529,-522.72,9.231e-05,2]
[347042792,1735482634538,-500.0,9.231e-05,2]
[347042793,1735482634548,-500.0,9.231e-05,2]
[347042795,1735482634557,-500.0,9.231e-05,2]
[347042796,1735482634566,-500.0,9.231e-05,2]
[347042799,1735482634575,-553.20571383,9.231e-05,2]
[347042800,1735482634585,-500.0,9.231e-05,2]
[347042803,1735482634594,-500.0,9.231e-05,2]
[347042805,1735482634603,-500.0,9.231e-05,2]
[347042807,1735482634613,-500.0,9.231e-05,2]
[347042809,1735482634623,-500.0,9.231e-05,2]
[347042810,1735482634632,-500.0,9.231e-05,2]
[347042813,1735482634641,-500.0,9.231e-05,2]
[347042815,1735482634651,-762.21,9.231e-05,2]
[347042817,1735482634660,-500.0,9.231e-05,2]
[347042819,1735482634669,-1127.62,9.231e-05,2]
[347042821,1735482634679,-500.0,9.231e-05,2]
[347042823,1735482634687,-500.0,9.231e-05,2]
[347042825,1735482634697,-500.0,9.231e-05,2]
[347042827,1735482634706,-500.0,9.231e-05,2]
[347042828,1735482634716,-500.0,9.231e-05,2]
[347042829,1735482634726,-500.0,9.231e-05,2]
[347042830,1735482634736,-500.0,9.231e-05,2]
[347042831,1735482634745,-500.0,9.231e-05,2]
[347042832,1735482634755,-500.0,9.231e-05,2]
[347042833,1735482634764,-500.0,9.231e-05,2]
[347042835,1735482634774,-500.0,9.231e-05,2]
[347042837,1735482634783,-500.0,9.231e-05,2]
[347042839,1735482634792,-873.18,9.231e-05,2]
[347042840,1735482634801,-500.0,9.231e-05,2]
[347042841,1735482634810,-500.0,9.231e-05,2]
[347042842,1735482634820,-500.0,9.231e-05,2]
[347042843,1735482634829,-1132.24,9.231e-05,2]
[347042844,1735482634838,-500.0,9.231e-05,2]
[347042845,1735482634847,-1056.48,9.231e-05,2]
[347042846,1735482634856,-928.95,9.231e-05,2]
[347042847,1735482634957,-500.0,9.231e-05,2]
[347042848,1735482634969,-500.0,9.231e-05,2]
[347042849,1735482634979,-627.21,9.231e-05,2]
[347042850,1735482634989,-500.0,9.231e-05,2]
[347042851,1735482634998,-500.0,9.231e-05,2]
[347042852,1735482635008,-500.0,9.231e-05,2]
[347042853,1735482635017,-500.0,9.231e-05,2]
[347042854,1735482635027,-500.0,9.231e-05,2]
[347042855,1735482635037,-502.05383504,9.231e-05,2]
[347042856,1735482635047,-500.0,9.231e-05,2]
[347042857,1735482635056,-500.0,9.231e-05,2]
[347042858,1735482635065,-500.0,9.231e-05,2]
[347042859,1735482635075,-500.0,9.231e-05,2]
[347042860,1735482635085,-500.5481474,9.231e-05,2]
[347042861,1735482635094,-785.31,9.231e-05,2]
[347042862,1735482635104,-500.0,9.231e-05,2]
[347042863,1735482635114,-500.0,9.231e-05,2]
[347042864,1735482635123,-188.69373556,9.231e-05,2]
[347042865,1735482635132,-500.0,9.231e-05,2]
[347042866,1735482635141,-934.62,9.231e-05,2]
[347042867,1735482635150,-534.16,9.231e-05,2]
[347042868,1735482635159,-500.0,9.231e-05,2]
[347042869,1735482635169,-500.0,9.231e-05,2]
[347042870,1735482635179,-685.59,9.231e-05,2]
[347042871,1735482635188,-500.0,9.231e-05,2]
[347042872,1735482635197,-500.0,9.231e-05,2]
[347042873,1735482635206,-608.52,9.231e-05,2]
[347042874,1735482635216,-500.0,9.231e-05,2]
[347042875,1735482635225,-500.0,9.231e-05,2]
[347042876,1735482635235,-500.0,9.231e-05,2]
[347042877,1735482635244,-500.0,9.231e-05,2]
[347042878,1735482635253,-500.0,9.231e-05,2]
[347042879,1735482635262,-29.27609591,9.232e-05,2]
[347042880,1735482635290,-525.46390409,9.232e-05,2]
[347042881,1735482635300,-500.0,9.232e-05,2]
[347042882,1735482635310,-1902.15,9.232e-05,2]
[347042883,1735482635320,-543.2916063,9.233e-05,2]
[347042884,1735482635329,-500.0,9.233e-05,2]
[347042885,1735482635338,-500.0,9.234e-05,2]
[347042886,1735482635348,-500.0,9.234e-05,2]
[347042887,1735482635357,-500.0,9.234e-05,2]
[347042888,1735482635367,-500.0,9.234e-05,2]
[347042889,1735482635376,-505.61316964,9.234e-05,2]
[347042890,1735482635386,-512.78053316,9.234e-05,2]
[347042891,1735482635395,-209.46699778,9.234e-05,2]
[347042892,1735482635405,-567.89376908,9.234e-05,2]
[347042893,1735482635414,-466.42965618,9.234e-05,2]
[347042894,1735482635424,-500.0,9.234e-05,2]
[347042895,1735482635433,-581.98044485,9.234e-05,2]
[347042896,1735482635443,-500.0,9.234e-05,2]
[347042897,1735482635452,-503.88895537,9.234e-05,2]
[347042898,1735482635461,-506.12213312,9.234e-05,2]
[347042899,1735482635471,-500.0,9.234e-05,2]
[347042900,1735482635481,-500.0,9.234e-05,2]
[347042901,1735482635490,-501.28018746,9.234e-05,2]
[347042902,1735482635500,-609.03576347,9.234e-05,2]
[347042903,1735482635509,-515.6293879,9.234e-05,2]
[347042904,1735482635519,-500.0,9.234e-05,2]
[347042905,1735482635528,-500.0,9.234e-05,2]
[347042906,1735482635538,-284.97569444,9.234e-05,2]
[347042907,1735482635547,-500.0,9.234e-05,2]
[347042908,1735482635556,-500.0,9.234e-05,2]
[347042909,1735482635565,-500.0,9.234e-05,2]
[347042910,1735482635574,-500.0,9.234e-05,2]
[347042911,1735482635583,-7004.98241483,9.234e-05,2]
[347042912,1735482635643,-439.565,9.234e-05,2]
[347042913,1735482635659,-12642.63258517,9.234e-05,2]
[347042914,1735482635668,-500.0,9.234e-05,2]
[347042915,1735482635677,-421.49183996,9.234e-05,2]
[347042916,1735482635686,-500.78719065,9.234e-05,2]
[347042917,1735482635695,-746.4,9.234e-05,2]
[347042918,1735482635704,-500.0,9.234e-05,2]
[347042919,1735482635713,-500.0,9.234e-05,2]
[347042920,1735482635723,-511.42525382,9.234e-05,2]
[347042921,1735482635732,-500.0,9.234e-05,2]
[347042922,1735482635742,-180.13850292,9.234e-05,2]
[347042923,1735482635751,-500.0,9.234e-05,2]
[347042924,1735482635761,-500.0,9.235e-05,2]
[347042925,1735482635769,-500.0,9.236e-05,2]
[347042926,1735482635778,-503.06677639,9.236e-05,2]
[347042927,1735482635788,-500.0,9.236e-05,2]
[347042928,1735482635797,-500.0,9.236e-05,2]
[347042929,1735482635807,-500.0,9.236e-05,2]
[347042930,1735482635816,-500.0,9.236e-05,2]
[347042931,1735482635825,-635.63,9.236e-05,2]
[347042932,1735482635834,-500.0,9.236e-05,2]
[347042933,1735482635843,-500.0,9.236e-05,2]
[347042934,1735482635853,-500.0,9.236e-05,2]
[347042935,1735482635862,-500.0,9.236e-05,2]
[347042936,1735482635872,-500.0,9.236e-05,2]
[347042937,1735482635884,-500.0,9.236e-05,2]
[347042938,1735482635893,-500.0,9.236e-05,2]
[347042939,1735482635903,-500.0,9.236e-05,2]
[347042940,1735482635912,-500.0,9.236e-05,2]
[347042941,1735482635922,-500.0,9.236e-05,2]
[347042942,1735482635932,-500.0,9.236e-05,2]
[347042943,1735482635941,-500.0,9.236e-05,2]
[347042944,1735482635952,-500.0,9.236e-05,2]
[347042945,1735482635961,-500.0,9.236e-05,2]
[347042946,1735482635971,-500.0,9.236e-05,2]
[347042947,1735482635980,-500.0,9.236e-05,2]
[347042948,1735482635990,-500.0,9.236e-05,2]
[347042949,1735482636000,-500.0,9.236e-05,2]
[347042950,1735482636009,-645.54070861,9.236e-05,2]
[347042951,1735482636018,-500.0,9.236e-05,2]
[347042952,1735482636028,-153.35675439,9.236e-05,2]
[347042953,1735482636038,-500.0,9.236e-05,2]
[347042954,1735482636047,-852.31,9.236e-05,2]
[347042955,1735482636056,-500.0,9.236e-05,2]
[347042956,1735482636066,-500.0,9.236e-05,2]
[347042957,1735482636075,-500.0,9.236e-05,2]
[347042958,1735482636084,-500.0,9.236e-05,2]
[347042959,1735482636094,-2853.53,9.236e-05,2]
[347042960,1735482636103,-500.0,9.236e-05,2]
[347042961,1735482636112,-500.0,9.236e-05,2]
[347042962,1735482636122,-500.0,9.236e-05,2]
[347042963,1735482636131,-500.0,9.236e-05,2]
[347042964,1735482636140,-500.0,9.236e-05,2]
[347042965,1735482636149,-500.0,9.237e-05,2]
[347042966,1735482636158,-500.0,9.237e-05,2]
[347042967,1735482636168,-500.0,9.238e-05,2]
[347042968,1735482636177,-933.2,9.238e-05,2]
[347042969,1735482636186,-500.0,9.238e-05,2]
[347042970,1735482636195,-500.0,9.238e-05,2]
[347042971,1735482636204,-707.95,9.238e-05,2]
[347042972,1735482636213,-500.0,9.238e-05,2]
[347042973,1735482636223,-500.0,9.238e-05,2]
[347042974,1735482636232,-500.0,9.239e-05,2]
[347042975,1735482636242,-500.0,9.239e-05,2]
[347042976,1735482636251,-500.0,9.239e-05,2]
[347042977,1735482636261,-345.77042265,9.239e-05,2]
[347042978,1735482636270,-500.0,9.239e-05,2]
[347042979,1735482636279,-500.0,9.239e-05,2]
[347042980,1735482636288,-500.0,9.239e-05,2]
[347042981,1735482636298,-500.0,9.239e-05,2]
[347042982,1735482636307,-500.0,9.239e-05,2]
[347042983,1735482636317,-500.0,9.239e-05,2]
[347042984,1735482636326,-500.0,9.239e-05,2]
[347042985,1735482636335,-500.0,9.239e-05,2]
[347042986,1735482636345,-799.51,9.239e-05,2]
[347042987,1735482636354,-500.0,9.24e-05,2]
[347042988,1735482636363,-500.0,9.24e-05,2]
[347042989,1735482636373,-500.0,9.24e-05,2]
[347042990,1735482636382,-500.0,9.24e-05,2]
[347042991,1735482636392,-500.0,9.24e-05,2]
[347042992,1735482636401,-508.14771235,9.24e-05,2]
[347042993,1735482636410,-500.0,9.24e-05,2]
[347042994,1735482636420,-500.0,9.24e-05,2]
[347042995,1735482636429,-500.0,9.24e-05,2]
[347042996,1735482636439,-500.0,9.24e-05,2]
[347042997,1735482636448,-500.0,9.24e-05,2]
[347042998,1735482636458,-500.0,9.24e-05,2]
[347042999,1735482636468,-860.55,9.24e-05,2]
[347043000,1735482636478,-500.0,9.24e-05,2]
[347043001,1735482636487,-500.0,9.24e-05,2]
[347043002,1735482636496,-500.0,9.24e-05,2]
[347043003,1735482636506,-500.0,9.24e-05,2]
[347043004,1735482636515,-500.0,9.24e-05,2]
[347043005,1735482636524,-500.0,9.24e-05,2]
[347043006,1735482636534,-500.0,9.24e-05,2]
[347043007,1735482636543,-500.0,9.24e-05,2]
[347043008,1735482636552,-2304.62,9.24e-05,2]
[347043009,1735482636562,-500.0,9.24e-05,2]
[347043010,1735482636571,-500.0,9.24e-05,2]
[347043011,1735482636580,-500.0,9.24e-05,2]
[347043012,1735482636590,-500.0,9.24e-05,2]
[347043013,1735482636599,-2258.03,9.24e-05,2]
[347043014,1735482636609,-500.0,9.24e-05,2]
[347043015,1735482636618,-2258.03,9.24e-05,2]
[347043016,1735482636627,-500.0,9.24e-05,2]
[347043017,1735482636636,-512.292235,9.24e-05,2]
[347043018,1735482636646,-500.0,9.24e-05,2]
[347043019,1735482636655,-500.0,9.24e-05,2]
[347043020,1735482636664,-500.0,9.24e-05,2]
[347043021,1735482636673,-1539.26,9.24e-05,2]
[347043022,1735482636682,-500.0,9.24e-05,2]
[347043023,1735482636692,-500.0,9.24e-05,2]
[347043024,1735482636701,-500.0,9.24e-05,2]
[347043025,1735482636710,-1021.38,9.24e-05,2]
[347043026,1735482636719,-500.0,9.24e-05,2]
[347043027,1735482636729,-582.97,9.24e-05,2]
[347043028,1735482636738,-500.72756574,9.241e-05,2]
[347043029,1735482636747,-500.0,9.241e-05,2]
[347043030,1735482636756,-3507.69,9.242e-05,2]
[347043031,1735482636766,-641.57,9.242e-05,2]
[347043032,1735482636775,-500.0,9.242e-05,2]
[347043033,1735482636784,-500.0,9.242e-05,2]
[347043034,1735482636794,-500.0,9.242e-05,2]
[347043035,1735482636804,-2258.03,9.242e-05,2]
[347043036,1735482636813,-188.69373554,9.37e-05,2]
[347043037,1735482636822,-500.0,9.504e-05,2]
[347043038,1735482636832,-500.0,9.504e-05,2]
[347043039,1735482636841,-461.65655663,9.504e-05,2]
[347043040,1735482636927,-500.0,9.505e-05,2]
[347043041,1735482636937,-500.65464685,9.505e-05,2]
[347043042,1735482636946,-500.0,9.505e-05,2]
[347043043,1735482636955,-500.77235716,9.505e-05,2]
[347043044,1735482636966,-500.0,9.505e-05,2]
[347043045,1735482636975,-500.0,9.505e-05,2]
[347043046,1735482636986,-500.0,9.505e-05,2]
[347043047,1735482636996,-232.91,9.505e-05,2]
[347043048,1735482637005,-522.72,9.505e-05,2]
[347043049,1735482637015,-500.0,9.505e-05,2]
[347043050,1735482637025,-500.0,9.505e-05,2]
[347043051,1735482637034,-510.75747027,9.505e-05,2]
[347043052,1735482637043,-241.14426071,9.505e-05,2]
[347043053,1735482637053,-500.0,9.505e-05,2]
[347043054,1735482637062,-500.0,9.505e-05,2]
[347043055,1735482637071,-500.0,9.505e-05,2]
[347043056,1735482637081,-500.0,9.505e-05,2]
[347043057,1735482637090,-500.0,9.505e-05,2]
[347043058,1735482637099,-500.0,9.505e-05,2]
[347043059,1735482637108,-762.21,9.505e-05,2]
[347043060,1735482637117,-500.0,9.505e-05,2]
[347043061,1735482637126,-1127.62,9.505e-05,2]
[347043062,1735482637136,-500.0,9.505e-05,2]
[347043063,1735482637145,-500.0,9.505e-05,2]
[347043064,1735482637154,-500.0,9.505e-05,2]
[347043065,1735482637164,-500.0,9.505e-05,2]
[347043066,1735482637173,-500.0,9.505e-05,2]
[347043067,1735482637183,-500.0,9.505e-05,2]
[347043068,1735482637192,-500.0,9.505e-05,2]
[347043069,1735482637202,-500.0,9.505e-05,2]
[347043070,1735482637211,-873.18,9.505e-05,2]
[347043071,1735482637221,-500.0,9.505e-05,2]
[347043072,1735482637231,-500.0,9.505e-05,2]
[347043073,1735482637240,-1132.24,9.505e-05,2]
[347043074,1735482637249,-500.0,9.505e-05,2]
[347043075,1735482637259,-1056.48,9.505e-05,2]
[347043076,1735482637268,-928.95,9.505e-05,2]
[347043077,1735482637278,-627.21,9.505e-05,2]
[347043078,1735482637288,-500.0,9.505e-05,2]
[347043079,1735482637297,-500.0,9.505e-05,2]
[347043080,1735482637307,-500.0,9.505e-05,2]
[347043081,1735482637316,-500.0,9.505e-05,2]
[347043082,1735482637325,-500.0,9.505e-05,2]
[347043083,1735482637334,-500.0,9.505e-05,2]
[347043084,1735482637343,-500.0,9.505e-05,2]
[347043085,1735482637353,-785.31,9.505e-05,2]
[347043086,1735482637364,-500.0,9.505e-05,2]
[347043087,1735482637373,-505.67027563,9.505e-05,2]
[347043088,1735482637382,-500.0,9.505e-05,2]
[347043089,1735482637391,-934.62,9.505e-05,2]
[347043090,1735482637401,-534.16,9.505e-05,2]
[347043091,1735482637411,-500.0,9.505e-05,2]
[347043092,1735482637420,-500.0,9.505e-05,2]
[347043093,1735482637429,-685.59,9.505e-05,2]
[347043094,1735482637438,-608.52,9.505e-05,2]
[347043095,1735482637447,-500.0,9.505e-05,2]
[347043096,1735482637456,-500.0,9.505e-05,2]
[347043097,1735482637466,-554.74,9.506e-05,2]
[347043098,1735482637476,-500.0,9.506e-05,2]
[347043099,1735482637485,-1902.15,9.506e-05,2]
[347043100,1735482637494,-500.0,9.507e-05,2]
[347043101,1735482637505,-500.0,9.508e-05,2]
[347043102,1735482637514,-500.0,9.508e-05,2]
[347043104,1735482637523,-500.0,9.508e-05,2]
[347043105,1735482637532,-500.0,9.508e-05,2]
[347043106,1735482637541,-500.0,9.508e-05,2]
[347043107,1735482637551,-500.0,9.508e-05,2]
[347043108,1735482637560,-500.0,9.508e-05,2]
[347043109,1735482637569,-500.0,9.508e-05,2]
[347043110,1735482637578,-20087.18,9.508e-05,2]
[347043111,1735482637588,-500.0,9.508e-05,2]
[347043112,1735482637597,-746.4,9.508e-05,2]
[347043114,1735482637607,-188.69373554,9.508e-05,2]
[347043116,1735482637617,-423.94068298,9.509e-05,2]
[347043118,1735482637627,-500.0,9.51e-05,2]
[347043120,1735482637637,-500.0,9.51e-05,2]
[347043121,1735482637647,-500.0,9.51e-05,2]
[347043122,1735482637656,-635.63,9.51e-05,2]
[347043123,1735482637665,-479.20874602,9.51e-05,2]
[347043124,1735482637675,-500.0,9.51e-05,2]
[347043125,1735482637684,-500.0,9.51e-05,2]
[347043126,1735482637693,-500.0,9.51e-05,2]
[347043127,1735482637703,-500.0,9.51e-05,2]
[347043128,1735482637712,-551.22,9.51e-05,2]
[347043129,1735482637721,-505.86002229,9.51e-05,2]
[347043130,1735482637732,-500.0,9.51e-05,2]
[347043131,1735482637741,-500.0,9.51e-05,2]
[347043132,1735482637750,-500.0,9.51e-05,2]
[347043133,1735482637759,-500.0,9.51e-05,2]
[347043134,1735482637769,-500.0,9.51e-05,2]
[347043135,1735482637778,-500.0,9.51e-05,2]
[347043136,1735482637787,-500.0,9.51e-05,2]
[347043138,1735482637796,-500.0,9.51e-05,2]
[347043140,1735482637805,-501.72478121,9.51e-05,2]
[347043142,1735482637815,-500.0,9.51e-05,2]
[347043144,1735482637824,-500.0,9.51e-05,2]
[347043146,1735482637834,-500.0,9.51e-05,2]
[347043148,1735482637844,-852.31,9.51e-05,2]
[347043150,1735482637854,-500.0,9.51e-05,2]
[347043152,1735482637863,-500.0,9.51e-05,2]
[347043154,1735482637876,-500.0,9.51e-05,2]
[347043156,1735482637886,-626.81717075,9.51e-05,2]
[347043158,1735482637895,-2853.53,9.51e-05,2]
[347043160,1735482637904,-500.0,9.51e-05,2]
[347043162,1735482637913,-536.48578541,9.51e-05,2]
[347043163,1735482637924,-349.32524595,9.51e-05,2]
[347043164,1735482637934,-500.0,9.512e-05,2]
[347043165,1735482637944,-933.2,9.512e-05,2]
[347043166,1735482637954,-467.03768174,9.512e-05,2]
[347043167,1735482637964,-111.53929768,9.512e-05,2]
[347043169,1735482637979,-388.46070232,9.512e-05,2]
[347043170,1735482637990,-707.95,9.512e-05,2]
[347043171,1735482638000,-500.0,9.512e-05,2]
[347043172,1735482638010,-500.0,9.512e-05,2]
[347043173,1735482638019,-500.0,9.513e-05,2]
[347043174,1735482638028,-500.0,9.513e-05,2]
[347043176,1735482638038,-799.51,9.513e-05,2]
[347043178,1735482638048,-500.0,9.514e-05,2]
[347043179,1735482638058,-500.0,9.514e-05,2]
[347043181,1735482638067,-501.38835104,9.514e-05,2]
[347043182,1735482638077,-500.0,9.514e-05,2]
[347043184,1735482638086,-597.25173237,9.514e-05,2]
[347043186,1735482638096,-500.0,9.514e-05,2]
[347043187,1735482638105,-500.0,9.514e-05,2]
[347043189,1735482638114,-503.54287961,9.514e-05,2]
[347043191,1735482638124,-500.0,9.514e-05,2]
[347043193,1735482638133,-500.0,9.514e-05,2]
[347043195,1735482638142,-860.55,9.514e-05,2]
[347043197,1735482638152,-500.0,9.514e-05,2]
[347043198,1735482638161,-500.0,9.514e-05,2]
[347043199,1735482638170,-500.0,9.514e-05,2]
[347043200,1735482638180,-383.947523,9.514e-05,2]
[347043201,1735482638189,-500.0,9.514e-05,2]
[347043202,1735482638199,-500.0,9.514e-05,2]
[347043203,1735482638208,-2304.62,9.514e-05,2]
[347043204,1735482638217,-500.0,9.514e-05,2]
[347043205,1735482638227,-500.0,9.514e-05,2]
[347043206,1735482638237,-500.0,9.514e-05,2]
[347043207,1735482638246,-500.0,9.514e-05,2]
[347043208,1735482638256,-500.0,9.514e-05,2]
[347043209,1735482638265,-1714.77881166,9.514e-05,2]
[347043210,1735482638277,-543.25118834,9.514e-05,2]
[347043211,1735482638286,-500.0,9.514e-05,2]
[347043212,1735482638295,-500.0,9.514e-05,2]
[347043213,1735482638304,-160.69660295,9.514e-05,2]
[347043214,1735482638314,-1539.26,9.514e-05,2]
[347043215,1735482638323,-500.0,9.514e-05,2]
[347043216,1735482638333,-500.0,9.514e-05,2]
[347043217,1735482638342,-1021.38,9.514e-05,2]
[347043218,1735482638351,-500.0,9.514e-05,2]
[347043219,1735482638361,-582.97,9.514e-05,2]
[347043220,1735482638370,-500.0,9.515e-05,2]
[347043221,1735482638379,-2258.03,9.515e-05,2]
[347043222,1735482638388,-2298.50802408,9.516e-05,2]
[347043223,1735482639288,-500.0,9.23e-05,2]